fUSD/lending_fUSD_20250629
["ID","MTS","AMOUNT","RATE_DAILY","PERIOD"]
[368479871,1751190640706,-490.0,0.00027397,3]
[368479872,1751190640715,-490.0,0.00027397,3]
[368479874,1751190640724,-1649.19,0.00027397,3]
[368479876,1751190640735,-490.0,0.00027397,3]
[368479878,1751190640744,-490.0,0.00027397,3]
[368479880,1751190640754,-490.0,0.00027397,3]
[368479882,1751190640763,-2026.94,0.00027397,3]
[368479884,1751190640772,-490.0,0.00027397,3]
[368479886,1751190640781,-490.0,0.00027397,3]
[368479888,1751190640789,-490.0,0.00027397,3]
[368479890,1751190640798,-490.0,0.00027397,3]
[368479892,1751190640807,-843.7,0.00027397,3]
[368479894,1751190640816,-490.0,0.00027397,3]
[368479897,1751190640826,-490.0,0.00027397,3]
[368479898,1751190640835,-490.0,0.00027397,3]
[368479900,1751190640844,-490.0,0.00027397,3]
[368479902,1751190640853,-490.0,0.00027397,3]
[368479904,1751190640863,-494.3527427,0.00027397,3]
[368479906,1751190640872,-490.0,0.00027397,3]
[368479908,1751190640881,-571.61,0.00027397,3]
[368479910,1751190640890,-490.0,0.00027397,3]
[368479912,1751190640900,-1147.84,0.00027397,3]
[368479915,1751190640910,-490.0,0.00027397,3]
[368479917,1751190640919,-490.0,0.00027397,3]
[368479919,1751190640928,-1556.08,0.00027397,3]
[368479920,1751190640938,-896.97,0.00027397,3]
[368479923,1751190640948,-490.0,0.00027397,3]
[368479925,1751190640957,-594.67,0.00027397,3]
[368479927,1751190640966,-490.0,0.00027397,3]
[368479929,1751190640976,-1027.62,0.00027397,3]
[368479931,1751190640985,-707.16,0.00027397,3]
[368479933,1751190640995,-500.0,0.00027397,3]
[368479935,1751190641004,-792.35,0.00027397,3]
[368479937,1751190641013,-490.0,0.00027397,3]
[368479939,1751190641022,-880.72,0.00027397,3]
[368479940,1751190641031,-490.0,0.00027397,3]
[368479942,1751190641040,-490.0,0.00027397,3]
[368479944,1751190641050,-490.0,0.00027397,3]
[368479946,1751190641059,-490.0,0.00027397,3]
[368479948,1751190641069,-490.0,0.00027397,3]
[368479950,1751190641078,-490.0,0.00027397,3]
[368479952,1751190641087,-780.47,0.00027397,3]
[368479954,1751190641096,-490.0,0.00027397,3]
[368479956,1751190641105,-490.0,0.00027397,3]
[368479958,1751190641114,-560.33,0.00027397,3]
[368479960,1751190641123,-525.19,0.00027397,3]
[368479962,1751190641133,-944.59,0.00027397,3]
[368479964,1751190641142,-490.0,0.00027397,3]
[368479967,1751190641152,-1653.81,0.00027397,3]
[368479969,1751190641161,-490.0,0.00027397,3]
[368479971,1751190641170,-1620.77,0.00027397,3]
[368479973,1751190641180,-490.0,0.00027397,3]
[368479974,1751190641189,-1900.77,0.00027397,3]
[368479977,1751190641199,-490.0,0.00027397,3]
[368479979,1751190641209,-490.0,0.00027397,3]
[368479980,1751190641219,-490.0,0.00027397,3]
[368479982,1751190641228,-521.24,0.00027397,3]
[368479984,1751190641238,-1487.61,0.00027397,3]
[368479986,1751190641247,-397.97183058,0.00027397,3]
[368479988,1751190641257,-1556.78,0.00027397,3]
[368479991,1751190641267,-490.0,0.00027397,3]
[368479993,1751190641277,-1046.71,0.00027397,3]
[368479995,1751190641287,-1633.03,0.00027397,3]
[368479997,1751190641296,-490.0,0.00027397,3]
[368479999,1751190641306,-506.3,0.00027397,3]
[368480001,1751190641315,-1936.24,0.00027397,3]
[368480003,1751190641328,-514.5,0.00027397,3]
[368480005,1751190641337,-490.0,0.00027397,3]
[368480007,1751190641347,-2262.43,0.00027397,3]
[368480009,1751190641357,-490.0,0.00027397,3]
[368480011,1751190641366,-490.0,0.00027397,3]
[368480013,1751190641375,-665.95,0.00027397,3]
[368480015,1751190641383,-1268.88,0.00027397,3]
[368480017,1751190641393,-2474.6,0.00027397,3]
[368480019,1751190641402,-689.16,0.00027397,3]
[368480021,1751190641413,-490.0,0.00027397,3]
[368480023,1751190641422,-490.0,0.00027397,3]
[368480025,1751190641431,-490.0,0.00027397,3]
[368480027,1751190641440,-490.0,0.00027397,3]
[368480029,1751190641449,-858.86,0.00027397,3]
[368480031,1751190641458,-1400.07,0.00027397,3]
[368480033,1751190641467,-490.0,0.00027397,3]
[368480035,1751190641476,-490.0,0.00027397,3]
[368480037,1751190641485,-730.59,0.00027397,3]
[368480039,1751190641494,-666.33,0.00027397,3]
[368480041,1751190641503,-1700.28,0.00027397,3]
[368480043,1751190641512,-490.0,0.00027397,3]
[368480045,1751190641521,-818.45,0.00027397,3]
[368480047,1751190641530,-1024.15,0.00027397,3]
[368480049,1751190641539,-709.17,0.00027397,3]
[368480051,1751190641548,-490.0,0.00027397,3]
[368480053,1751190641557,-490.0,0.00027397,3]
[368480055,1751190641566,-562.07574635,0.00027397,3]
[368480057,1751190641575,-2038.87,0.00027397,3]
[368480059,1751190641585,-1027.52,0.00027397,3]
[368480061,1751190641594,-490.0,0.00027397,3]
[368480063,1751190641603,-154.22019333,0.00027397,3]
[368480065,1751190641612,-534.02,0.00027397,3]
[368480067,1751190641621,-490.0,0.00027397,3]
[368480069,1751190641630,-2394.84,0.00027397,3]
[368480071,1751190641639,-490.0,0.00027397,3]
[368480073,1751190641649,-385.40617667,0.00027397,3]
[368480075,1751190641661,-1561.51,0.00027397,3]
[368480077,1751190641670,-490.0,0.00027397,3]
[368480079,1751190641679,-490.0,0.00027397,3]
[368480081,1751190641688,-490.0,0.00027397,3]
[368480083,1751190641697,-490.0,0.00027397,3]
[368480085,1751190641706,-1167.05,0.00027397,3]
[368480087,1751190641715,-899.19,0.00027397,3]
[368480088,1751190641724,-935.31,0.00027397,3]
[368480090,1751190641734,-771.06,0.00027397,3]
[368480092,1751190641743,-490.0,0.00027397,3]
[368480094,1751190641752,-610.33,0.00027397,3]
[368480096,1751190641761,-490.0,0.00027397,3]
[368480099,1751190641771,-490.0,0.00027397,3]
[368480101,1751190641780,-715.86,0.00027397,3]
[368480103,1751190641789,-490.0,0.00027397,3]
[368480105,1751190641798,-490.0,0.00027397,3]
[368480106,1751190641807,-1503.84,0.00027397,3]
[368480108,1751190641817,-490.0,0.00027397,3]
[368480110,1751190641826,-566.4,0.00027397,3]
[368480112,1751190641835,-1626.28,0.00027397,3]
[368480115,1751190641844,-589.35,0.00027397,3]
[368480117,1751190641853,-934.93,0.00027397,3]
[368480119,1751190641862,-516.29,0.00027397,3]
[368480121,1751190641871,-490.0,0.00027397,3]
[368480122,1751190641880,-2211.02,0.00027397,3]
[368480125,1751190641889,-1313.26,0.00027397,3]
[368480127,1751190641898,-2018.3,0.00027397,3]
[368480128,1751190641907,-878.98,0.00027397,3]
[368480130,1751190641916,-490.0,0.00027397,3]
[368480132,1751190641925,-490.0,0.00027397,3]
[368480134,1751190641934,-1320.46,0.00027397,3]
[368480136,1751190641943,-1272.1,0.00027397,3]
[368480138,1751190641953,-490.0,0.00027397,3]
[368480140,1751190641962,-2254.95,0.00027397,3]
[368480143,1751190641971,-490.0,0.00027397,3]
[368480145,1751190641981,-490.0,0.00027397,3]
[368480146,1751190641990,-490.0,0.00027397,3]
[368480149,1751190641999,-490.0,0.00027397,3]
[368480151,1751190642008,-801.49,0.00027397,3]
[368480153,1751190642018,-490.0,0.00027397,3]
[368480155,1751190642027,-793.92,0.00027397,3]
[368480157,1751190642036,-490.0,0.00027397,3]
[368480158,1751190642045,-295.05586054,0.00027397,3]
[368480160,1751190642054,-1409.04,0.00027397,3]
[368480162,1751190642063,-566.98,0.00027397,3]
[368480164,1751190642073,-1383.19,0.00027397,3]
[368480166,1751190642082,-520.23,0.00027397,3]
[368480169,1751190642091,-855.39,0.00027397,3]
[368480171,1751190642100,-503.31,0.00027397,3]
[368480172,1751190642110,-490.0,0.00027397,3]
[368480174,1751190642119,-490.0,0.00027397,3]
[368480176,1751190642128,-490.0,0.00027397,3]
[368480178,1751190642137,-490.0,0.00027397,3]
[368480180,1751190642146,-490.0,0.00027397,3]
[368480182,1751190642156,-490.0,0.00027397,3]
[368480184,1751190642166,-490.0,0.00027397,3]
[368480186,1751190642174,-907.17,0.00027397,3]
[368480188,1751190642184,-1411.93,0.00027397,3]
[368480190,1751190642193,-490.0,0.00027397,3]
[368480192,1751190642202,-1733.55,0.00027397,3]
[368480194,1751190642211,-490.0,0.00027397,3]
[368480196,1751190642220,-490.0,0.00027397,3]
[368480198,1751190642229,-1161.29,0.00027397,3]
[368480200,1751190642239,-490.0,0.00027397,3]
[368480202,1751190642247,-490.0,0.00027397,3]
[368480204,1751190642257,-490.0,0.00027397,3]
[368480206,1751190642266,-302.83339231,0.00027397,3]
[368480208,1751190642276,-490.0,0.00027397,3]
[368480210,1751190642285,-490.0,0.00027397,3]
[368480212,1751190642295,-492.59,0.00027397,3]
[368480214,1751190642306,-648.19,0.00027397,3]
[368480217,1751190642317,-664.2,0.00027397,3]
[368480219,1751190642333,-1411.98,0.00027397,3]
[368480221,1751190642342,-490.0,0.00027397,3]
[368480223,1751190642351,-234.11950947,0.00027397,3]
[368480225,1751190642360,-490.0,0.00027397,3]
[368480227,1751190642370,-1476.05,0.00027397,3]
[368480229,1751190642379,-490.0,0.00027397,3]
[368480231,1751190642387,-490.0,0.00027397,3]
[368480232,1751190642397,-490.0,0.00027397,3]
[368480235,1751190642407,-490.0,0.00027397,3]
[368480237,1751190642417,-2483.68,0.00027397,3]
[368480239,1751190642426,-1539.15,0.00027397,3]
[368480241,1751190642435,-622.78,0.00027397,3]
[368480243,1751190642445,-2320.44,0.00027397,3]
[368480245,1751190642454,-490.0,0.00027397,3]
[368480247,1751190642463,-490.0,0.00027397,3]
[368480248,1751190642473,-894.95,0.00027397,3]
[368480251,1751190642483,-701.41,0.00027397,3]
[368480253,1751190642492,-490.0,0.00027397,3]
[368480255,1751190642501,-490.0,0.00027397,3]
[368480257,1751190642510,-515.96551693,0.00027397,3]
[368480258,1751190642519,-1005.08,0.00027397,3]
[368480260,1751190642529,-526.1,0.00027397,3]
[368480262,1751190642538,-490.0,0.00027397,3]
[368480264,1751190642547,-490.0,0.00027397,3]
[368480267,1751190642557,-1199.97,0.00027397,3]
[368480269,1751190642567,-1032.78,0.00027397,3]
[368480271,1751190642577,-1283.76,0.00027397,3]
[368480272,1751190642586,-490.0,0.00027397,3]
[368480275,1751190642595,-549.61,0.00027397,3]
[368480278,1751190642607,-490.0,0.00027397,3]
[368480281,1751190642616,-490.0,0.00027397,3]
[368480284,1751190642625,-179.66138731,0.00027397,3]
[368480287,1751190642634,-490.0,0.00027397,3]
[368480289,1751190642643,-490.0,0.00027397,3]
[368480291,1751190642653,-901.15,0.00027397,3]
[368480293,1751190642662,-545.6,0.00027397,3]
[368480295,1751190642671,-490.0,0.00027397,3]
[368480297,1751190642681,-841.45,0.00027397,3]
[368480299,1751190642690,-490.0,0.00027397,3]
[368480301,1751190642698,-1956.7,0.00027397,3]
[368480304,1751190642707,-525.0,0.00027397,3]
[368480306,1751190642716,-908.9,0.00027397,3]
[368480308,1751190642726,-490.0,0.00027397,3]
[368480310,1751190642735,-490.0,0.00027397,3]
[368480313,1751190642745,-1559.17,0.00027397,3]
[368480317,1751190642755,-490.0,0.00027397,3]
[368480319,1751190642764,-565.52230571,0.00027397,3]
[368480321,1751190642774,-772.36,0.00027397,3]
[368480324,1751190642783,-490.0,0.00027397,3]
[368480326,1751190642793,-1731.31,0.00027397,3]
[368480328,1751190642803,-490.0,0.00027397,3]
[368480330,1751190642813,-490.0,0.00027397,3]
[368480332,1751190642823,-490.0,0.00027397,3]
[368480333,1751190642832,-1241.41,0.00027397,3]
[368480335,1751190642841,-490.0,0.00027397,3]
[368480337,1751190642850,-2257.75,0.00027397,3]
[368480339,1751190642859,-1736.54,0.00027397,3]
[368480341,1751190642869,-2325.03,0.00027397,3]
[368480343,1751190642878,-613.43,0.00027397,3]
[368480345,1751190642887,-490.0,0.00027397,3]
[368480347,1751190642896,-490.0,0.00027397,3]
[368480350,1751190642906,-1117.78,0.00027397,3]
[368480352,1751190642915,-1022.6,0.00027397,3]
[368480353,1751190642924,-896.69,0.00027397,3]
[368480355,1751190642933,-490.0,0.00027397,3]
[368480357,1751190642943,-998.0,0.00027397,3]
[368480359,1751190642952,-490.0,0.00027397,3]
[368480362,1751190642964,-490.0,0.00027397,3]
[368480364,1751190642973,-490.0,0.00027397,3]
[368480366,1751190642982,-1382.19,0.00027397,3]
[368480367,1751190642992,-490.0,0.00027397,3]
[368480369,1751190643001,-490.0,0.00027397,3]
[368480371,1751190643010,-1087.69,0.00027397,3]
[368480373,1751190643019,-490.0,0.00027397,3]
[368480376,1751190643029,-937.32,0.00027397,3]
[368480377,1751190643038,-490.0,0.00027397,3]
[368480380,1751190643047,-490.0,0.00027397,3]
[368480382,1751190643057,-490.0,0.00027397,3]
[368480383,1751190643067,-490.0,0.00027397,3]
[368480385,1751190643077,-2003.29,0.00027397,3]
[368480387,1751190643086,-490.0,0.00027397,3]
[368480389,1751190643096,-1073.82,0.00027397,3]
[368480391,1751190643106,-499.72105932,0.00027397,3]
[368480393,1751190643115,-490.0,0.00027397,3]
[368480395,1751190643124,-1428.66,0.00027397,3]
[368480397,1751190643134,-490.0,0.00027397,3]
[368480399,1751190643144,-906.56,0.00027397,3]
[368480401,1751190643154,-490.0,0.00027397,3]
[368480403,1751190643163,-751.94,0.00027397,3]
[368480405,1751190643172,-1284.2,0.00027397,3]
[368480407,1751190643181,-995.73,0.00027397,3]
[368480409,1751190643190,-730.89,0.00027397,3]
[368480411,1751190643199,-490.0,0.00027397,3]
[368480413,1751190643208,-490.0,0.00027397,3]
[368480415,1751190643218,-490.0,0.00027397,3]
[368480417,1751190643227,-490.0,0.00027397,3]
[368480419,1751190643236,-490.0,0.00027397,3]
[368480421,1751190643245,-490.0,0.00027397,3]
[368480423,1751190643254,-490.0,0.00027397,3]
[368480425,1751190643264,-490.0,0.00027397,3]
[368480427,1751190643273,-490.0,0.00027397,3]
[368480429,1751190643283,-3819.49,0.00027397,3]
[368480431,1751190643292,-490.0,0.00027397,3]
[368480433,1751190643301,-490.0,0.00027397,3]
[368480435,1751190643311,-614.58,0.00027397,3]
[368480437,1751190643322,-490.0,0.00027397,3]
[368480439,1751190643331,-490.0,0.00027397,3]
[368480441,1751190643340,-490.0,0.00027397,3]
[368480443,1751190643350,-2099.43,0.00027397,3]
[368480445,1751190643359,-591.09,0.00027397,3]
[368480447,1751190643369,-490.0,0.00027397,3]
[368480449,1751190643378,-490.0,0.00027397,3]
[368480451,1751190643387,-490.0,0.00027397,3]
[368480453,1751190643396,-490.0,0.00027397,3]
[368480455,1751190643406,-1763.09,0.00027397,3]
[368480457,1751190643415,-1553.22,0.00027397,3]
[368480459,1751190643425,-930.34,0.00027397,3]
[368480461,1751190643434,-490.0,0.00027397,3]
[368480463,1751190643443,-1288.37,0.00027397,3]
[368480465,1751190643452,-587.32,0.00027397,3]
[368480467,1751190643462,-490.0,0.00027397,3]
[368480469,1751190643471,-4450.47,0.00027397,3]
[368480471,1751190643480,-935.65,0.00027397,3]
[368480473,1751190643490,-490.0,0.00027397,3]
[368480475,1751190643499,-490.0,0.00027397,3]
[368480477,1751190643509,-490.0,0.00027397,3]
[368480479,1751190643518,-854.31,0.00027397,3]
[368480481,1751190643527,-490.0,0.00027397,3]
[368480483,1751190643537,-490.0,0.00027397,3]
[368480485,1751190643546,-383.10406695,0.00027397,3]
[368480487,1751190643555,-490.0,0.00027397,3]
[368480489,1751190643565,-490.0,0.00027397,3]
[368480491,1751190643574,-490.0,0.00027397,3]
[368480493,1751190643583,-528.19,0.00027397,3]
[368480495,1751190643592,-490.0,0.00027397,3]
[368480497,1751190643613,-959.78,0.00027397,3]
[368480499,1751190643627,-490.0,0.00027397,3]
[368480501,1751190643636,-490.0,0.00027397,3]
[368480504,1751190643647,-490.0,0.00027397,3]
[368480505,1751190643657,-490.0,0.00027397,3]
[368480507,1751190643667,-490.0,0.00027397,3]
[368480509,1751190643676,-1065.99,0.00027397,3]
[368480512,1751190643685,-490.0,0.00027397,3]
[368480514,1751190643695,-766.16,0.00027397,3]
[368480516,1751190643704,-490.0,0.00027397,3]
[368480517,1751190643714,-1177.8,0.00027397,3]
[368480519,1751190643723,-490.0,0.00027397,3]
[368480521,1751190643732,-1454.99,0.00027397,3]
[368480524,1751190643742,-490.0,0.00027397,3]
[368480525,1751190643752,-490.0,0.00027397,3]
[368480527,1751190643761,-455.33966942,0.00027397,3]
[368480530,1751190643770,-1049.98,0.00027397,3]
[368480531,1751190643780,-921.89,0.00027397,3]
[368480533,1751190643789,-490.0,0.00027397,3]
[368480544,1751190644028,-603.29,0.00027397,3]
[368480547,1751190644038,-490.0,0.00027397,3]
[368480549,1751190644050,-490.0,0.00027397,3]
[368480551,1751190644059,-1101.22,0.00027397,3]
[368480553,1751190644069,-490.0,0.00027397,3]
[368480555,1751190644078,-490.0,0.00027397,3]
[368480557,1751190644088,-490.0,0.00027397,3]
[368480559,1751190644098,-490.0,0.00027397,3]
[368480561,1751190644108,-490.0,0.00027397,3]
[368480563,1751190644120,-555.36,0.00027397,3]
[368480565,1751190644131,-1690.83,0.00027397,3]
[368480567,1751190644141,-490.0,0.00027397,3]
[368480569,1751190644150,-608.46,0.00027397,3]
[368480571,1751190644160,-494.25,0.00027397,3]
[368480573,1751190644170,-916.39,0.00027397,3]
[368480575,1751190644180,-490.0,0.00027397,3]
[368480577,1751190644190,-698.3,0.00027397,3]
[368480579,1751190644199,-490.0,0.00027397,3]
[368480581,1751190644209,-573.71,0.00027397,3]
[368480583,1751190644219,-490.0,0.00027397,2]
[368480584,1751190644228,-490.0,0.00027397,3]
[368480586,1751190644239,-18048.03,0.00027397,3]
[368480588,1751190644248,-1394.52,0.00027397,3]
[368480590,1751190644258,-490.0,0.00027397,3]
[368480592,1751190644267,-490.0,0.00027397,3]
[368480594,1751190644276,-1033.94,0.00027397,3]
[368480597,1751190644285,-841.15,0.00027397,3]
[368480599,1751190644295,-490.0,0.00027397,3]
[368480601,1751190644304,-490.0,0.00027397,3]
[368480603,1751190644313,-814.68,0.00027397,3]
[368480605,1751190644327,-860.32,0.00027397,3]
[368480607,1751190644336,-994.63,0.00027397,3]
[368480609,1751190644345,-817.07,0.00027397,3]
[368480611,1751190644355,-490.0,0.00027397,3]
[368480613,1751190644365,-490.0,0.00027397,3]
[368480615,1751190644376,-490.0,0.00027397,3]
[368480617,1751190644386,-1083.78,0.00027397,3]
[368480619,1751190644399,-490.0,0.00027397,3]
[368480621,1751190644409,-490.0,0.00027397,3]
[368480623,1751190644420,-895.73,0.00027397,3]
[368480625,1751190644429,-490.0,0.00027397,3]
[368480627,1751190644440,-507.20798501,0.00027397,3]
[368480629,1751190644450,-1619.71,0.00027397,3]
[368480631,1751190644459,-2039.79,0.00027397,3]
[368480632,1751190644469,-490.0,0.00027397,3]
[368480634,1751190644479,-490.0,0.00027397,3]
[368480638,1751190644490,-490.0,0.00027397,3]
[368480641,1751190644500,-522.56,0.00027397,3]
[368480644,1751190644510,-490.0,0.00027397,3]
[368480646,1751190644520,-490.0,0.00027397,3]
[368480648,1751190644529,-490.0,0.00027397,3]
[368480650,1751190644541,-1338.17,0.00027397,3]
[368480652,1751190644551,-490.0,0.00027397,3]
[368480654,1751190644561,-490.0,0.00027397,3]
[368480657,1751190644571,-2735.95,0.00027397,3]
[368480660,1751190644580,-490.0,0.00027397,3]
[368480663,1751190644589,-490.0,0.00027397,3]
[368480665,1751190644599,-490.0,0.00027397,3]
[368480667,1751190644608,-490.0,0.00027397,3]
[368480669,1751190644619,-5045.19,0.00027397,3]
[368480671,1751190644629,-490.0,0.00027397,3]
[368480673,1751190644639,-298.35959003,0.00027397,3]
[368480675,1751190644650,-732.19,0.00027397,3]
[368480677,1751190644660,-490.0,0.00027397,3]
[368480679,1751190644671,-490.0,0.00027397,3]
[368480682,1751190644682,-1159.62,0.00027397,3]
[368480684,1751190644693,-2798.62,0.00027397,3]
[368480686,1751190644703,-557.27,0.00027397,3]
[368480687,1751190644714,-490.0,0.00027397,3]
[368480690,1751190644725,-1735.18,0.00027397,3]
[368480692,1751190644735,-530.31599952,0.00027397,3]
[368480694,1751190644745,-352.72776371,0.00027397,3]
[368480696,1751190644755,-500.0,0.00027397,3]
[368480698,1751190644765,-500.0,0.00027397,3]
[368480700,1751190644775,-500.0,0.00027397,3]
[368480702,1751190644785,-490.0,0.00027397,3]
[368480704,1751190644794,-500.0,0.00027397,3]
[368480706,1751190644805,-490.0,0.00027397,3]
[368480708,1751190644815,-2632.4,0.00027397,3]
[368480710,1751190644824,-795.99,0.00027397,3]
[368480712,1751190644833,-500.0,0.00027397,3]
[368480714,1751190644843,-490.0,0.00027397,3]
[368480716,1751190644854,-890.5,0.00027397,3]
[368480718,1751190644863,-490.0,0.00027397,3]
[368480720,1751190644873,-490.0,0.00027397,3]
[368480722,1751190644884,-2676.96,0.00027397,3]
[368480724,1751190644893,-490.0,0.00027397,3]
[368480726,1751190644904,-815.43,0.00027397,3]
[368480728,1751190644914,-564.45,0.00027397,3]
[368480730,1751190644923,-490.0,0.00027397,3]
[368480732,1751190644933,-2287.33,0.00027397,3]
[368480734,1751190644943,-490.0,0.00027397,3]
[368480736,1751190644953,-490.0,0.00027397,3]
[368480738,1751190644963,-7199.68,0.00027397,3]
[368480740,1751190644973,-1083.86,0.00027397,3]
[368480742,1751190644983,-1198.65,0.00027397,3]
[368480744,1751190644993,-2504.77,0.00027397,3]
[368480746,1751190645003,-490.0,0.00027397,3]
[368480748,1751190645013,-4926.93,0.00027397,3]
[368480750,1751190645023,-2111.85,0.00027397,3]
[368480752,1751190645033,-670.5,0.00027397,3]
[368480754,1751190645043,-1466.04,0.00027397,3]
[368480756,1751190645053,-9168.68,0.00027397,3]
[368480758,1751190645063,-995.99,0.00027397,3]
[368480760,1751190645073,-148479.19,0.00027397,3]
[368480762,1751190645083,-884.61,0.00027397,3]
[368480764,1751190645092,-1110.23,0.00027397,3]
[368480766,1751190645102,-490.0,0.00027397,3]
[368480768,1751190645111,-490.0,0.00027397,3]
[368480770,1751190645121,-3927.92,0.00027397,3]
[368480771,1751190645131,-1262.58,0.00027397,3]
[368480774,1751190645141,-490.0,0.00027397,3]
[368480775,1751190645151,-490.0,0.00027397,3]
[368480778,1751190645161,-490.0,0.00027397,3]
[368480780,1751190645171,-1550.57,0.00027397,3]
[368480782,1751190645181,-490.0,0.00027397,3]
[368480784,1751190645190,-4423.72,0.00027397,3]
[368480786,1751190645199,-490.0,0.00027397,3]
[368480788,1751190645210,-490.0,0.00027397,3]
[368480789,1751190645219,-799.02,0.00027397,3]
[368480791,1751190645228,-490.0,0.00027397,3]
[368480793,1751190645238,-490.0,0.00027397,3]
[368480795,1751190645247,-2359.81,0.00027397,3]
[368480797,1751190645257,-612.29,0.00027397,3]
[368480800,1751190645268,-579.36576112,0.00027397,3]
[368480802,1751190645278,-1420.75,0.00027397,3]
[368480804,1751190645288,-490.0,0.00027397,3]
[368480806,1751190645298,-490.0,0.00027397,3]
[368480808,1751190645307,-2220.09,0.00027397,3]
[368480809,1751190645318,-490.0,0.00027397,3]
[368480811,1751190645336,-490.0,0.00027397,3]
[368480814,1751190645346,-1116.8,0.00027397,3]
[368480815,1751190645355,-490.0,0.00027397,3]
[368480818,1751190645364,-495.37,0.00027397,3]
[368480820,1751190645374,-850.38,0.00027397,3]
[368480822,1751190645383,-1635.41,0.00027397,3]
[368480824,1751190645392,-1906.36,0.00027397,3]
[368480826,1751190645401,-2198.76,0.00027397,3]
[368480828,1751190645411,-490.0,0.00027397,3]
[368480830,1751190645420,-1730.15,0.00027397,3]
[368480831,1751190645430,-590.95,0.00027397,3]
[368480833,1751190645439,-490.0,0.00027397,3]
[368480835,1751190645448,-1477.82,0.00027397,3]
[368480837,1751190645457,-3000.74,0.00027397,3]
[368480839,1751190645467,-924.29,0.00027397,3]
[368480841,1751190645476,-1894.35,0.00027397,3]
[368480843,1751190645485,-818.08,0.00027397,3]
[368480845,1751190645494,-1537.71,0.00027397,3]
[368480847,1751190645503,-490.0,0.00027397,3]
[368480849,1751190645513,-1565.54,0.00027397,3]
[368480851,1751190645522,-490.0,0.00027397,3]
[368480853,1751190645531,-707.33,0.00027397,3]
[368480855,1751190645541,-490.0,0.00027397,3]
[368480858,1751190645551,-490.0,0.00027397,3]
[368480860,1751190645560,-490.0,0.00027397,3]
[368480862,1751190645570,-854.62,0.00027397,3]
[368480864,1751190645579,-1990.15,0.00027397,3]
[368480866,1751190645588,-490.0,0.00027397,3]
[368480867,1751190645597,-2120.63,0.00027397,3]
[368480869,1751190645607,-490.0,0.00027397,3]
[368480871,1751190645616,-490.0,0.00027397,3]
[368480872,1751190645625,-501.24,0.00027397,3]
[368480874,1751190645635,-490.0,0.00027397,3]
[368480876,1751190645644,-1303.39,0.00027397,3]
[368480879,1751190645654,-490.0,0.00027397,3]
[368480882,1751190645663,-490.0,0.00027397,3]
[368480883,1751190645672,-490.0,0.00027397,3]
[368480885,1751190645681,-490.0,0.00027397,3]
[368480887,1751190645691,-490.0,0.00027397,3]
[368480889,1751190645700,-2057.83,0.00027397,3]
[368480891,1751190645709,-1078.53,0.00027397,3]
[368480894,1751190645718,-1066.81,0.00027397,3]